[Event "Titled Tuesday Blitz January 10 Late 2023"]
[White "Fisher_TheGalactic"]
[Black "Carbone, Diego"]
[BlackFideId "3002179"]
[WhiteElo "2556"]
[BlackElo "2336"]
[Result "0-1"]
[Round "07"]
[TimeControl "180+2"]
[Date "2023.01.10"]
[WhiteClock "0:00:17"]
[BlackClock "0:00:10"]

1. Nf3 {[%clk 0:00:00]}  Nf6 {[%clk 0:00:00]} 2. g3 {[%clk 0:03:00]}  g6 {[%clk 0:02:57]} 3. Bg2 {[%clk 0:02:59]}  Bg7 {[%clk 0:02:58]} 4. O-O {[%clk 0:02:56]}  O-O {[%clk 0:02:59]} 5. d3 {[%clk 0:02:56]}  d6 {[%clk 0:02:59]} 6. Nbd2 {[%clk 0:02:56]}  c5 {[%clk 0:02:59]} 7. e4 {[%clk 0:02:55]}  Nc6 {[%clk 0:02:59]} 8. c3 {[%clk 0:02:56]}  Rb8 {[%clk 0:03:00]} 9. Re1 {[%clk 0:02:56]}  e5 {[%clk 0:02:46]} 10. Nc4 {[%clk 0:02:51]}  b5 {[%clk 0:02:42]} 11. Ne3 {[%clk 0:02:46]}  h6 {[%clk 0:02:37]} 12. Nh4 {[%clk 0:02:46]}  Be6 {[%clk 0:02:35]} 13. f4 {[%clk 0:02:34]}  exf4 {[%clk 0:02:32]} 14. gxf4 {[%clk 0:02:34]}  Ng4 {[%clk 0:02:15]} 15. Nf3 {[%clk 0:02:35]}  Nxe3 {[%clk 0:02:07]} 16. Bxe3 {[%clk 0:02:28]}  Qd7 {[%clk 0:02:07]} 17. Qd2 {[%clk 0:02:29]}  Bh3 {[%clk 0:02:04]} 18. f5 {[%clk 0:02:28]}  Bxg2 {[%clk 0:02:01]} 19. Kxg2 {[%clk 0:02:25]}  Kh7 {[%clk 0:02:01]} 20. Nh4 {[%clk 0:02:24]}  b4 {[%clk 0:02:01]} 21. c4 {[%clk 0:02:17]}  Nd4 {[%clk 0:01:58]} 22. Rf1 {[%clk 0:02:11]}  Bf6 {[%clk 0:01:53]} 23. Nf3 {[%clk 0:02:09]}  g5 {[%clk 0:01:34]} 24. Nxd4 {[%clk 0:02:04]}  cxd4 {[%clk 0:01:30]} 25. Bf2 {[%clk 0:02:04]}  a5 {[%clk 0:01:27]} 26. Qe2 {[%clk 0:02:04]}  a4 {[%clk 0:01:25]} 27. Qh5 {[%clk 0:02:04]}  Be5 {[%clk 0:01:22]} 28. Kh1 {[%clk 0:02:02]}  Rbc8 {[%clk 0:01:18]} 29. Rg1 {[%clk 0:02:01]}  Qe7 {[%clk 0:01:15]} 30. Rg4 {[%clk 0:02:00]}  Qf6 {[%clk 0:01:11]} 31. Rag1 {[%clk 0:01:57]}  Rg8 {[%clk 0:01:08]} 32. h4 {[%clk 0:01:54]}  Bf4 {[%clk 0:01:08]} 33. hxg5 {[%clk 0:01:53]}  Rxg5 {[%clk 0:00:58]} 34. Rxg5 {[%clk 0:01:37]}  Bxg5 {[%clk 0:00:57]} 35. Bxd4 {[%clk 0:01:32]}  Qxd4 {[%clk 0:00:58]} 36. Rxg5 {[%clk 0:01:28]}  Rf8 {[%clk 0:00:46]} 37. Rg2 {[%clk 0:01:27]}  Qxd3 {[%clk 0:00:47]} 38. Qg4 {[%clk 0:01:19]}  Qd4 {[%clk 0:00:43]} 39. b3 {[%clk 0:01:10]}  a3 {[%clk 0:00:29]} 40. Kh2 {[%clk 0:01:09]}  Re8 {[%clk 0:00:25]} 41. Kh3 {[%clk 0:01:05]}  Qc3+ {[%clk 0:00:22]} 42. Rg3 {[%clk 0:00:57]}  Qf6 {[%clk 0:00:20]} 43. Rg2 {[%clk 0:00:57]}  Qg5 {[%clk 0:00:19]} 44. Qxg5 {[%clk 0:00:41]}  hxg5 {[%clk 0:00:19]} 45. Re2 {[%clk 0:00:41]}  f6 {[%clk 0:00:20]} 46. Kg4 {[%clk 0:00:33]}  Kg7 {[%clk 0:00:17]} 47. Kf3 {[%clk 0:00:32]}  Rh8 {[%clk 0:00:17]} 48. Rd2 {[%clk 0:00:32]}  Rh3+ {[%clk 0:00:17]} 49. Ke2 {[%clk 0:00:32]}  Rh2+ {[%clk 0:00:16]} 50. Kd3 {[%clk 0:00:30]}  Rxd2+ {[%clk 0:00:16]} 51. Kxd2 {[%clk 0:00:30]}  Kh6 {[%clk 0:00:15]} 52. Ke3 {[%clk 0:00:31]}  Kh5 {[%clk 0:00:13]} 53. Kf3 {[%clk 0:00:32]}  g4+ {[%clk 0:00:13]} 54. Kf4 {[%clk 0:00:32]}  Kh4 {[%clk 0:00:12]} 55. e5 {[%clk 0:00:26]}  dxe5+ {[%clk 0:00:12]} 56. Ke4 {[%clk 0:00:26]}  g3 {[%clk 0:00:08]} 57. c5 {[%clk 0:00:13]}  g2 {[%clk 0:00:08]} 58. Kd5 {[%clk 0:00:12]}  g1=Q {[%clk 0:00:08]} 59. Ke6 {[%clk 0:00:11]}  Qxc5 {[%clk 0:00:09]} 60. Kxf6 {[%clk 0:00:12]}  e4 {[%clk 0:00:09]} 61. Kg7 {[%clk 0:00:13]}  e3 {[%clk 0:00:09]} 62. f6 {[%clk 0:00:13]}  Qe5 {[%clk 0:00:10]} 63. Kg6 {[%clk 0:00:14]}  e2 {[%clk 0:00:10]} 64. f7 {[%clk 0:00:14]}  Qe6+ {[%clk 0:00:10]} 65. Kg7 {[%clk 0:00:15]}  Qxf7+ {[%clk 0:00:09]} 66. Kxf7 {[%clk 0:00:16]}  e1=Q {[%clk 0:00:10]} 67. Kf6 {[%clk 0:00:17]}  Qe2 {[%clk 0:00:10]} 0-1


[Site "https://www.chess.com"]

[Event "Titled Tuesday Blitz January 10 Late 2023"]
[White "Al-Tarboush, Ward"]
[Black "Skaric, Djuro"]
[WhiteFideId "7601450"]
[BlackFideId "934569"]
[WhiteElo "2256"]
[BlackElo "2334"]
[Result "1-0"]
[Round "07"]
[TimeControl "180+2"]
[Date "2023.01.10"]
[WhiteClock "0:01:50"]
[BlackClock "0:01:31"]

1. e4 {[%clk 0:00:00]}  d6 {[%clk 0:00:00]} 2. d4 {[%clk 0:03:00]}  g6 {[%clk 0:02:59]} 3. Nf3 {[%clk 0:03:00]}  Bg7 {[%clk 0:03:00]} 4. c3 {[%clk 0:02:59]}  Nf6 {[%clk 0:03:00]} 5. Bd3 {[%clk 0:02:59]}  O-O {[%clk 0:03:00]} 6. Nbd2 {[%clk 0:02:59]}  Nc6 {[%clk 0:03:00]} 7. Nf1 {[%clk 0:02:59]}  e5 {[%clk 0:03:01]} 8. Ng3 {[%clk 0:02:59]}  Nd7 {[%clk 0:03:01]} 9. Be3 {[%clk 0:03:00]}  Nb6 {[%clk 0:03:01]} 10. h4 {[%clk 0:03:00]}  Bg4 {[%clk 0:02:58]} 11. h5 {[%clk 0:02:59]}  exd4 {[%clk 0:02:57]} 12. cxd4 {[%clk 0:02:59]}  Nxd4 {[%clk 0:02:57]} 13. hxg6 {[%clk 0:02:58]}  fxg6 {[%clk 0:02:54]} 14. Bxd4 {[%clk 0:02:55]}  Bxf3 {[%clk 0:02:54]} 15. gxf3 {[%clk 0:02:51]}  Bxd4 {[%clk 0:02:54]} 16. Bc4+ {[%clk 0:02:50]}  Nxc4 {[%clk 0:02:53]} 17. Qxd4 {[%clk 0:02:48]}  Ne5 {[%clk 0:02:52]} 18. O-O-O {[%clk 0:02:49]}  Rxf3 {[%clk 0:02:49]} 19. Qd5+ {[%clk 0:02:50]}  Kg7 {[%clk 0:02:35]} 20. Rdg1 {[%clk 0:02:49]}  Kh8 {[%clk 0:02:34]} 21. Qe6 {[%clk 0:02:47]}  Qg5+ {[%clk 0:02:06]} 22. Kb1 {[%clk 0:02:00]}  Rf6 {[%clk 0:01:53]} 23. Qe7 {[%clk 0:01:59]}  Nf7 {[%clk 0:01:46]} 24. Nf5 {[%clk 0:01:54]}  Rxf5 {[%clk 0:01:31]} 25. Rxg5 {[%clk 0:01:50]} 1-0


[Site "https://www.chess.com"]

[Event "Titled Tuesday Blitz January 10 Late 2023"]
[White "Abdulla, Murad"]
[Black "Hoffmann, Asa"]
[WhiteFideId "2403757"]
[BlackFideId "2001470"]
[WhiteElo "2307"]
[BlackElo "2185"]
[Result "1/2-1/2"]
[Round "07"]
[TimeControl "180+2"]
[Date "2023.01.10"]
[WhiteClock "0:00:15"]
[BlackClock "0:00:32"]

1. e4 {[%clk 0:00:00]}  d6 {[%clk 0:00:00]} 2. d4 {[%clk 0:03:00]}  Nf6 {[%clk 0:02:58]} 3. Nc3 {[%clk 0:03:00]}  c6 {[%clk 0:02:57]} 4. a4 {[%clk 0:03:01]}  Qa5 {[%clk 0:02:56]} 5. Bd3 {[%clk 0:03:00]}  e5 {[%clk 0:02:55]} 6. Ne2 {[%clk 0:02:54]}  Be7 {[%clk 0:02:54]} 7. O-O {[%clk 0:02:54]}  O-O {[%clk 0:02:53]} 8. h3 {[%clk 0:02:53]}  Nbd7 {[%clk 0:02:51]} 9. Be3 {[%clk 0:02:54]}  d5 {[%clk 0:02:50]} 10. exd5 {[%clk 0:02:53]}  cxd5 {[%clk 0:02:46]} 11. dxe5 {[%clk 0:02:50]}  Nxe5 {[%clk 0:02:45]} 12. Bd4 {[%clk 0:02:46]}  Nc6 {[%clk 0:02:44]} 13. Bb5 {[%clk 0:02:42]}  Bf5 {[%clk 0:02:30]} 14. Rb1 {[%clk 0:02:30]}  a6 {[%clk 0:02:24]} 15. Bd3 {[%clk 0:01:47]}  Bg6 {[%clk 0:02:17]} 16. Bxg6 {[%clk 0:01:38]}  hxg6 {[%clk 0:02:13]} 17. Bxf6 {[%clk 0:01:34]}  Bxf6 {[%clk 0:02:13]} 18. Nxd5 {[%clk 0:01:33]}  Rfd8 {[%clk 0:02:12]} 19. c4 {[%clk 0:01:33]}  b5 {[%clk 0:02:04]} 20. axb5 {[%clk 0:01:20]}  axb5 {[%clk 0:01:39]} 21. b3 {[%clk 0:01:03]}  bxc4 {[%clk 0:01:38]} 22. bxc4 {[%clk 0:00:57]}  Qc5 {[%clk 0:01:34]} 23. Qc1 {[%clk 0:00:57]}  Ne5 {[%clk 0:01:34]} 24. Qf4 {[%clk 0:00:46]}  Qxc4 {[%clk 0:01:28]} 25. Nxf6+ {[%clk 0:00:14]}  gxf6 {[%clk 0:01:20]} 26. Qxf6 {[%clk 0:00:14]}  Qxe2 {[%clk 0:01:20]} 27. Rbe1 {[%clk 0:00:14]}  Nf3+ {[%clk 0:01:13]} 28. Qxf3 {[%clk 0:00:14]}  Qxf3 {[%clk 0:01:04]} 29. gxf3 {[%clk 0:00:12]}  Rd5 {[%clk 0:01:04]} 30. Re4 {[%clk 0:00:13]}  Rf5 {[%clk 0:01:03]} 31. Kg2 {[%clk 0:00:11]}  Ra3 {[%clk 0:01:00]} 32. Re3 {[%clk 0:00:11]}  Ra2 {[%clk 0:00:59]} 33. h4 {[%clk 0:00:10]}  Kg7 {[%clk 0:00:58]} 34. Rfe1 {[%clk 0:00:07]}  Rh5 {[%clk 0:00:57]} 35. Kg3 {[%clk 0:00:06]}  g5 {[%clk 0:00:53]} 36. Re4 {[%clk 0:00:06]}  Rxh4 {[%clk 0:00:49]} 37. Rxh4 {[%clk 0:00:02]}  gxh4+ {[%clk 0:00:47]} 38. Kxh4 {[%clk 0:00:02]}  Rxf2 {[%clk 0:00:47]} 39. Kg4 {[%clk 0:00:03]}  Rb2 {[%clk 0:00:46]} 40. Kf4 {[%clk 0:00:04]}  Kf6 {[%clk 0:00:46]} 41. Re4 {[%clk 0:00:04]}  Rb3 {[%clk 0:00:45]} 42. Ra4 {[%clk 0:00:03]}  Kg6 {[%clk 0:00:45]} 43. Ra6+ {[%clk 0:00:04]}  f6 {[%clk 0:00:42]} 44. Kg4 {[%clk 0:00:04]}  Rb4+ {[%clk 0:00:42]} 45. f4 {[%clk 0:00:04]}  Rc4 {[%clk 0:00:42]} 46. Rb6 {[%clk 0:00:05]}  Ra4 {[%clk 0:00:40]} 47. Rc6 {[%clk 0:00:04]}  Rb4 {[%clk 0:00:40]} 48. Ra6 {[%clk 0:00:05]}  Rc4 {[%clk 0:00:39]} 49. Ra8 {[%clk 0:00:04]}  Rb4 {[%clk 0:00:35]} 50. Rg8+ {[%clk 0:00:05]}  Kf7 {[%clk 0:00:35]} 51. Rh8 {[%clk 0:00:05]}  Rc4 {[%clk 0:00:34]} 52. Rd8 {[%clk 0:00:05]}  Ke7 {[%clk 0:00:34]} 53. Ra8 {[%clk 0:00:02]}  Kf7 {[%clk 0:00:34]} 54. Kf5 {[%clk 0:00:01]}  Rc5+ {[%clk 0:00:34]} 55. Kg4 {[%clk 0:00:01]}  Kg6 {[%clk 0:00:34]} 56. Ra7 {[%clk 0:00:02]}  f5+ {[%clk 0:00:34]} 57. Kh4 {[%clk 0:00:02]}  Rc3 {[%clk 0:00:33]} 58. Ra6+ {[%clk 0:00:03]}  Kf7 {[%clk 0:00:33]} 59. Kg5 {[%clk 0:00:03]}  Rc5 {[%clk 0:00:32]} 60. Rf6+ {[%clk 0:00:04]}  Kg7 {[%clk 0:00:32]} 61. Rxf5 {[%clk 0:00:05]}  Rxf5+ {[%clk 0:00:32]} 62. Kxf5 {[%clk 0:00:06]}  Kf7 {[%clk 0:00:32]} 63. Ke5 {[%clk 0:00:06]}  Ke7 {[%clk 0:00:32]} 64. f5 {[%clk 0:00:07]}  Kf7 {[%clk 0:00:32]} 65. f6 {[%clk 0:00:08]}  Kf8 {[%clk 0:00:32]} 66. Kf5 {[%clk 0:00:09]}  Kf7 {[%clk 0:00:32]} 67. Kg5 {[%clk 0:00:10]}  Kf8 {[%clk 0:00:32]} 68. Kg6 {[%clk 0:00:10]}  Kg8 {[%clk 0:00:32]} 69. Kf5 {[%clk 0:00:11]}  Kf7 {[%clk 0:00:32]} 70. Ke5 {[%clk 0:00:12]}  Kf8 {[%clk 0:00:32]} 71. Ke6 {[%clk 0:00:13]}  Ke8 {[%clk 0:00:32]} 72. Kd6 {[%clk 0:00:14]}  Kf7 {[%clk 0:00:32]} 73. Ke5 {[%clk 0:00:15]} 1/2-1/2


[Site "https://www.chess.com"]

[Event "Titled Tuesday Blitz January 10 Late 2023"]
[White "Tyagi, Kushan"]
[Black "Kleiman, Jake"]
[WhiteFideId "2040069"]
[BlackFideId "2020041"]
[WhiteElo "2060"]
[BlackElo "2399"]
[Result "0-1"]
[Round "07"]
[TimeControl "180+2"]
[Date "2023.01.10"]
[WhiteClock "0:00:02"]
[BlackClock "0:00:27"]

1. d4 {[%clk 0:00:00]}  Nf6 {[%clk 0:00:00]} 2. c4 {[%clk 0:03:00]}  e6 {[%clk 0:02:55]} 3. g3 {[%clk 0:03:00]}  Bb4+ {[%clk 0:02:54]} 4. Bd2 {[%clk 0:03:00]}  Bxd2+ {[%clk 0:02:54]} 5. Nxd2 {[%clk 0:02:59]}  O-O {[%clk 0:02:54]} 6. Bg2 {[%clk 0:02:59]}  d6 {[%clk 0:02:55]} 7. e3 {[%clk 0:02:59]}  e5 {[%clk 0:02:55]} 8. Ne2 {[%clk 0:02:40]}  Re8 {[%clk 0:02:53]} 9. O-O {[%clk 0:02:38]}  c5 {[%clk 0:02:52]} 10. a3 {[%clk 0:02:37]}  Nc6 {[%clk 0:02:51]} 11. Rb1 {[%clk 0:02:33]}  exd4 {[%clk 0:02:50]} 12. exd4 {[%clk 0:02:25]}  Bf5 {[%clk 0:02:40]} 13. Bxc6 {[%clk 0:02:23]}  bxc6 {[%clk 0:02:39]} 14. Rc1 {[%clk 0:01:52]}  Bd3 {[%clk 0:02:34]} 15. Re1 {[%clk 0:01:52]}  Bxe2 {[%clk 0:02:28]} 16. Rxe2 {[%clk 0:01:52]}  cxd4 {[%clk 0:02:28]} 17. c5 {[%clk 0:01:52]}  dxc5 {[%clk 0:02:25]} 18. Rxc5 {[%clk 0:01:32]}  d3 {[%clk 0:02:18]} 19. Rxe8+ {[%clk 0:01:33]}  Qxe8 {[%clk 0:02:06]} 20. Qc1 {[%clk 0:01:30]}  Rc8 {[%clk 0:02:07]} 21. Qc3 {[%clk 0:01:26]}  Qe1+ {[%clk 0:01:51]} 22. Nf1 {[%clk 0:01:23]}  Qe4 {[%clk 0:01:17]} 23. Rc4 {[%clk 0:01:12]}  Qf3 {[%clk 0:01:11]} 24. Rf4 {[%clk 0:01:08]}  Qe2 {[%clk 0:01:03]} 25. Rd4 {[%clk 0:01:03]}  Ne4 {[%clk 0:01:03]} 26. Qxd3 {[%clk 0:00:17]}  Qxf2+ {[%clk 0:00:57]} 27. Kh1 {[%clk 0:00:14]}  f5 {[%clk 0:00:50]} 28. Rd8+ {[%clk 0:00:15]}  Rxd8 {[%clk 0:00:39]} 29. Qxd8+ {[%clk 0:00:13]}  Kf7 {[%clk 0:00:39]} 30. Qd7+ {[%clk 0:00:14]}  Kg6 {[%clk 0:00:40]} 31. Qe6+ {[%clk 0:00:14]}  Nf6 {[%clk 0:00:39]} 32. Qc4 {[%clk 0:00:14]}  h6 {[%clk 0:00:38]} 33. Qf4 {[%clk 0:00:07]}  Qxf4 {[%clk 0:00:32]} 34. gxf4 {[%clk 0:00:03]}  Nd5 {[%clk 0:00:30]} 35. Nd2 {[%clk 0:00:04]}  Nxf4 {[%clk 0:00:31]} 36. Nc4 {[%clk 0:00:02]}  Nd3 {[%clk 0:00:31]} 37. b4 {[%clk 0:00:03]}  Kf6 {[%clk 0:00:28]} 38. Kg2 {[%clk 0:00:02]}  Ke6 {[%clk 0:00:28]} 39. Kf3 {[%clk 0:00:02]}  Ne5+ {[%clk 0:00:27]} 0-1


[Site "https://www.chess.com"]

[Event "Titled Tuesday Blitz January 10 Late 2023"]
[White "Osmonbekov, Talaibek"]
[Black "Martynov, Pavel"]
[WhiteFideId "2017253"]
[BlackFideId "4101260"]
[WhiteElo "2137"]
[BlackElo "2414"]
[Result "1-0"]
[Round "07"]
[TimeControl "180+2"]
[Date "2023.01.10"]
[WhiteClock "0:00:21"]
[BlackClock "0:00:20"]

1. d4 {[%clk 0:00:00]}  d5 {[%clk 0:00:00]} 2. Bf4 {[%clk 0:02:58]}  e6 {[%clk 0:02:59]} 3. Nc3 {[%clk 0:02:57]}  a6 {[%clk 0:02:59]} 4. e4 {[%clk 0:02:57]}  dxe4 {[%clk 0:02:57]} 5. Nxe4 {[%clk 0:02:49]}  Bd6 {[%clk 0:02:53]} 6. Nxd6+ {[%clk 0:02:49]}  cxd6 {[%clk 0:02:52]} 7. Qg4 {[%clk 0:02:40]}  g6 {[%clk 0:02:52]} 8. Bg5 {[%clk 0:02:30]}  e5 {[%clk 0:02:25]} 9. Qh4 {[%clk 0:02:24]}  f6 {[%clk 0:02:05]} 10. Be3 {[%clk 0:02:15]}  Qa5+ {[%clk 0:01:56]} 11. c3 {[%clk 0:02:13]}  Nd7 {[%clk 0:01:50]} 12. Bc4 {[%clk 0:02:10]}  Ne7 {[%clk 0:01:46]} 13. Be6 {[%clk 0:02:02]}  h5 {[%clk 0:01:45]} 14. Bxd7+ {[%clk 0:01:44]}  Bxd7 {[%clk 0:00:58]} 15. Qxf6 {[%clk 0:01:33]}  Rf8 {[%clk 0:00:48]} 16. Qxd6 {[%clk 0:01:34]}  Bc6 {[%clk 0:00:41]} 17. Nf3 {[%clk 0:01:34]}  Rd8 {[%clk 0:00:38]} 18. Qxe5 {[%clk 0:01:24]}  Rd5 {[%clk 0:00:38]} 19. Qg3 {[%clk 0:01:11]}  Qb5 {[%clk 0:00:37]} 20. O-O-O {[%clk 0:01:01]}  Qa4 {[%clk 0:00:36]} 21. Kb1 {[%clk 0:00:58]}  Rb5 {[%clk 0:00:35]} 22. Ne5 {[%clk 0:00:56]}  Bd5 {[%clk 0:00:34]} 23. c4 {[%clk 0:00:42]}  Bxc4 {[%clk 0:00:31]} 24. Nxc4 {[%clk 0:00:41]}  Qxc4 {[%clk 0:00:29]} 25. Rhe1 {[%clk 0:00:40]}  Rff5 {[%clk 0:00:30]} 26. Bc1 {[%clk 0:00:36]}  Kf7 {[%clk 0:00:27]} 27. Qe3 {[%clk 0:00:33]}  Qb4 {[%clk 0:00:26]} 28. Qe6+ {[%clk 0:00:29]}  Kf8 {[%clk 0:00:21]} 29. Bh6+ {[%clk 0:00:25]}  Ke8 {[%clk 0:00:21]} 30. Qc8+ {[%clk 0:00:21]}  Kf7 {[%clk 0:00:20]} 31. Qf8# {[%clk 0:00:21]} 1-0


[Site "https://www.chess.com"]

[Event "Titled Tuesday Blitz January 10 Late 2023"]
[White "reevecanada"]
[Black "Marcolino, Daniel Mattos"]
[BlackFideId "2106841"]
[WhiteElo "2497"]
[BlackElo "2006"]
[Result "1-0"]
[Round "07"]
[TimeControl "180+2"]
[Date "2023.01.10"]
[WhiteClock "0:01:42"]
[BlackClock "0:01:35"]

1. e4 {[%clk 0:00:00]}  c6 {[%clk 0:00:00]} 2. Nf3 {[%clk 0:02:59]}  d5 {[%clk 0:02:59]} 3. Nc3 {[%clk 0:02:56]}  Bg4 {[%clk 0:03:00]} 4. exd5 {[%clk 0:02:56]}  cxd5 {[%clk 0:02:59]} 5. Bb5+ {[%clk 0:02:55]}  Nc6 {[%clk 0:02:59]} 6. d4 {[%clk 0:02:49]}  Nf6 {[%clk 0:02:57]} 7. Bg5 {[%clk 0:02:38]}  Ne4 {[%clk 0:02:54]} 8. Bd2 {[%clk 0:02:30]}  Qb6 {[%clk 0:02:39]} 9. Nxd5 {[%clk 0:02:16]}  Qd8 {[%clk 0:02:25]} 10. Nc3 {[%clk 0:02:08]}  Nxd2 {[%clk 0:02:08]} 11. Qxd2 {[%clk 0:02:03]}  e6 {[%clk 0:01:55]} 12. O-O-O {[%clk 0:02:01]}  Bb4 {[%clk 0:01:54]} 13. d5 {[%clk 0:01:59]}  exd5 {[%clk 0:01:52]} 14. Rhe1+ {[%clk 0:01:59]}  Be6 {[%clk 0:01:49]} 15. Nd4 {[%clk 0:01:54]}  O-O {[%clk 0:01:48]} 16. Nxe6 {[%clk 0:01:52]}  fxe6 {[%clk 0:01:40]} 17. Rxe6 {[%clk 0:01:45]}  Qa5 {[%clk 0:01:41]} 18. Qxd5 {[%clk 0:01:43]}  Kh8 {[%clk 0:01:39]} 19. Bxc6 {[%clk 0:01:42]}  b6 {[%clk 0:01:35]} 1-0


[Site "https://www.chess.com"]

[Event "Titled Tuesday Blitz January 10 Late 2023"]
[White "Andrews, Todd"]
[Black "Tan, Zhongyi"]
[WhiteFideId "2012456"]
[BlackFideId "8603642"]
[WhiteElo "2220"]
[BlackElo "2517"]
[Result "1-0"]
[Round "07"]
[TimeControl "180+2"]
[Date "2023.01.10"]
[WhiteClock "0:00:29"]
[BlackClock "0:00:04"]

1. e4 {[%clk 0:00:00]}  e5 {[%clk 0:00:00]} 2. Nf3 {[%clk 0:03:00]}  Nf6 {[%clk 0:02:59]} 3. d4 {[%clk 0:03:00]}  Nxe4 {[%clk 0:02:57]} 4. Bd3 {[%clk 0:03:00]}  Nc6 {[%clk 0:02:56]} 5. dxe5 {[%clk 0:02:59]}  d5 {[%clk 0:02:54]} 6. O-O {[%clk 0:02:58]}  Nc5 {[%clk 0:02:53]} 7. Bb5 {[%clk 0:02:55]}  Be7 {[%clk 0:02:51]} 8. Nc3 {[%clk 0:02:52]}  Be6 {[%clk 0:02:50]} 9. Re1 {[%clk 0:02:51]}  O-O {[%clk 0:02:46]} 10. Bxc6 {[%clk 0:02:47]}  bxc6 {[%clk 0:02:45]} 11. Nd4 {[%clk 0:02:44]}  Qd7 {[%clk 0:02:45]} 12. f4 {[%clk 0:02:44]}  Bg4 {[%clk 0:02:41]} 13. Qd2 {[%clk 0:02:40]}  Ne6 {[%clk 0:02:39]} 14. Qf2 {[%clk 0:02:36]}  c5 {[%clk 0:02:38]} 15. Nf3 {[%clk 0:02:21]}  d4 {[%clk 0:02:25]} 16. Ne4 {[%clk 0:02:09]}  c4 {[%clk 0:02:09]} 17. Kh1 {[%clk 0:02:08]}  Rad8 {[%clk 0:02:05]} 18. h3 {[%clk 0:02:04]}  Bxf3 {[%clk 0:02:03]} 19. Qxf3 {[%clk 0:01:54]}  Nc5 {[%clk 0:01:56]} 20. f5 {[%clk 0:01:55]}  Nxe4 {[%clk 0:01:46]} 21. Rxe4 {[%clk 0:01:49]}  f6 {[%clk 0:01:33]} 22. e6 {[%clk 0:01:47]}  Qd5 {[%clk 0:01:27]} 23. Bf4 {[%clk 0:01:44]}  c5 {[%clk 0:01:26]} 24. Bd2 {[%clk 0:01:39]}  d3 {[%clk 0:01:25]} 25. c3 {[%clk 0:01:25]}  Rb8 {[%clk 0:01:22]} 26. Bh6 {[%clk 0:01:24]}  Rfd8 {[%clk 0:01:19]} 27. Qg4 {[%clk 0:01:11]}  Bf8 {[%clk 0:00:36]} 28. e7 {[%clk 0:00:57]}  Qf7 {[%clk 0:00:16]} 29. exd8=Q {[%clk 0:00:57]}  Rxd8 {[%clk 0:00:12]} 30. Bd2 {[%clk 0:00:52]}  h5 {[%clk 0:00:13]} 31. Qg6 {[%clk 0:00:51]}  Qd5 {[%clk 0:00:11]} 32. Rae1 {[%clk 0:00:47]}  Rb8 {[%clk 0:00:10]} 33. Re8 {[%clk 0:00:46]}  Rxe8 {[%clk 0:00:09]} 34. Qxe8 {[%clk 0:00:44]}  Qb7 {[%clk 0:00:08]} 35. Qe6+ {[%clk 0:00:42]}  Kh7 {[%clk 0:00:07]} 36. Qe8 {[%clk 0:00:41]}  Kg8 {[%clk 0:00:07]} 37. Qxh5 {[%clk 0:00:36]}  Qxb2 {[%clk 0:00:05]} 38. Qd1 {[%clk 0:00:35]}  Qxa2 {[%clk 0:00:04]} 39. Re8 {[%clk 0:00:29]}  Qa6 {[%clk 0:00:04]} 40. Qe1 {[%clk 0:00:29]} 1-0


[Site "https://www.chess.com"]

[Event "Titled Tuesday Blitz January 10 Late 2023"]
[White "Leiva, Gianmarco"]
[Black "Yashmetov, Mikhail"]
[WhiteFideId "3804399"]
[BlackFideId "24198900"]
[WhiteElo "2392"]
[BlackElo "2323"]
[Result "1-0"]
[Round "07"]
[TimeControl "180+2"]
[Date "2023.01.10"]
[WhiteClock "0:00:18"]
[BlackClock "0:00:16"]

1. e4 {[%clk 0:00:00]}  c5 {[%clk 0:00:00]} 2. Nf3 {[%clk 0:03:00]}  Nc6 {[%clk 0:03:00]} 3. Bb5 {[%clk 0:03:01]}  g6 {[%clk 0:03:00]} 4. O-O {[%clk 0:03:00]}  Bg7 {[%clk 0:03:00]} 5. Re1 {[%clk 0:03:00]}  e5 {[%clk 0:03:00]} 6. c3 {[%clk 0:03:00]}  Nge7 {[%clk 0:02:59]} 7. d3 {[%clk 0:02:57]}  O-O {[%clk 0:02:56]} 8. a3 {[%clk 0:02:46]}  d6 {[%clk 0:02:51]} 9. b4 {[%clk 0:02:44]}  Be6 {[%clk 0:02:45]} 10. Be3 {[%clk 0:02:44]}  b6 {[%clk 0:02:37]} 11. Nbd2 {[%clk 0:02:37]}  a6 {[%clk 0:02:32]} 12. Ba4 {[%clk 0:02:32]}  Rc8 {[%clk 0:02:30]} 13. Bb3 {[%clk 0:02:25]}  Qd7 {[%clk 0:02:22]} 14. Bxe6 {[%clk 0:02:21]}  Qxe6 {[%clk 0:02:08]} 15. Qb3 {[%clk 0:01:37]}  Qxb3 {[%clk 0:02:07]} 16. Nxb3 {[%clk 0:01:37]}  Nd8 {[%clk 0:01:50]} 17. Rac1 {[%clk 0:01:36]}  Ne6 {[%clk 0:01:51]} 18. d4 {[%clk 0:01:31]}  exd4 {[%clk 0:01:49]} 19. cxd4 {[%clk 0:01:25]}  c4 {[%clk 0:01:11]} 20. Nbd2 {[%clk 0:01:25]}  b5 {[%clk 0:01:11]} 21. d5 {[%clk 0:01:25]}  Nc7 {[%clk 0:01:08]} 22. Bd4 {[%clk 0:01:24]}  f5 {[%clk 0:00:55]} 23. Bxg7 {[%clk 0:00:54]}  Kxg7 {[%clk 0:00:27]} 24. e5 {[%clk 0:00:39]}  Ncxd5 {[%clk 0:00:28]} 25. exd6 {[%clk 0:00:34]}  Nc6 {[%clk 0:00:22]} 26. Ng5 {[%clk 0:00:34]}  Rf6 {[%clk 0:00:20]} 27. d7 {[%clk 0:00:30]}  Ra8 {[%clk 0:00:17]} 28. Re8 {[%clk 0:00:23]}  Rf8 {[%clk 0:00:15]} 29. Ne6+ {[%clk 0:00:20]}  Kf7 {[%clk 0:00:14]} 30. Nxf8 {[%clk 0:00:19]}  Rxe8 {[%clk 0:00:14]} 31. dxe8=Q+ {[%clk 0:00:15]}  Kxe8 {[%clk 0:00:11]} 32. Ne6 {[%clk 0:00:15]}  Ke7 {[%clk 0:00:12]} 33. Nc5 {[%clk 0:00:10]}  a5 {[%clk 0:00:10]} 34. Re1+ {[%clk 0:00:10]}  Kd6 {[%clk 0:00:07]} 35. Re6+ {[%clk 0:00:08]}  Kc7 {[%clk 0:00:06]} 36. bxa5 {[%clk 0:00:08]}  Nxa5 {[%clk 0:00:07]} 37. Nf3 {[%clk 0:00:08]}  c3 {[%clk 0:00:07]} 38. Nd4 {[%clk 0:00:07]}  b4 {[%clk 0:00:07]} 39. axb4 {[%clk 0:00:07]}  Nxb4 {[%clk 0:00:04]} 40. Nb5+ {[%clk 0:00:06]}  Kd8 {[%clk 0:00:05]} 41. Nxc3 {[%clk 0:00:07]}  Nc4 {[%clk 0:00:05]} 42. Nb5 {[%clk 0:00:07]}  Nd5 {[%clk 0:00:05]} 43. Nd6 {[%clk 0:00:07]}  Ncb6 {[%clk 0:00:05]} 44. Re5 {[%clk 0:00:04]}  Nc7 {[%clk 0:00:04]} 45. Re1 {[%clk 0:00:03]}  Nd7 {[%clk 0:00:04]} 46. Ne6+ {[%clk 0:00:02]}  Nxe6 {[%clk 0:00:04]} 47. Rxe6 {[%clk 0:00:02]}  Kc7 {[%clk 0:00:03]} 48. Ne8+ {[%clk 0:00:03]}  Kd8 {[%clk 0:00:03]} 49. Nf6 {[%clk 0:00:03]}  Nc5 {[%clk 0:00:04]} 50. Rd6+ {[%clk 0:00:04]}  Ke7 {[%clk 0:00:04]} 51. Rc6 {[%clk 0:00:05]}  Ne6 {[%clk 0:00:05]} 52. Nxh7 {[%clk 0:00:05]}  g5 {[%clk 0:00:05]} 53. Rxe6+ {[%clk 0:00:05]}  Kxe6 {[%clk 0:00:06]} 54. Nxg5+ {[%clk 0:00:06]}  Ke5 {[%clk 0:00:06]} 55. g3 {[%clk 0:00:07]}  Kf6 {[%clk 0:00:07]} 56. f4 {[%clk 0:00:07]}  Kg6 {[%clk 0:00:07]} 57. Kf2 {[%clk 0:00:08]}  Kh5 {[%clk 0:00:08]} 58. Kf3 {[%clk 0:00:08]}  Kg6 {[%clk 0:00:09]} 59. Ke3 {[%clk 0:00:09]}  Kh5 {[%clk 0:00:09]} 60. Kd3 {[%clk 0:00:10]}  Kg4 {[%clk 0:00:10]} 61. Kd4 {[%clk 0:00:11]}  Kh5 {[%clk 0:00:11]} 62. Kd5 {[%clk 0:00:12]}  Kh6 {[%clk 0:00:11]} 63. Ke5 {[%clk 0:00:13]}  Kh5 {[%clk 0:00:12]} 64. Kxf5 {[%clk 0:00:13]}  Kh6 {[%clk 0:00:12]} 65. Ne4 {[%clk 0:00:14]}  Kh5 {[%clk 0:00:13]} 66. Ke6 {[%clk 0:00:14]}  Kh6 {[%clk 0:00:14]} 67. f5 {[%clk 0:00:15]}  Kh5 {[%clk 0:00:14]} 68. f6 {[%clk 0:00:16]}  Kg6 {[%clk 0:00:15]} 69. f7 {[%clk 0:00:17]}  Kg7 {[%clk 0:00:16]} 70. Ke7 {[%clk 0:00:18]}  Kh7 {[%clk 0:00:16]} 71. f8=Q {[%clk 0:00:18]} 1-0


[Site "https://www.chess.com"]